Cogmind - Beta 12 *** ADVENTURER MODE // 2023.05.11 @ 21:20:21 Player: Ms. V3-11A Result: Destroyed by H-81 Overseer with Heavy Linear Accelerator Performance ------------- Evolutions (8) 4000 Regions Visited (22) 4400 Robots Destroyed (454) 2270 Value Destroyed (28201) 28201 Prototype IDs (53) 1060 Alien Tech Used (6) 1200 Bonus (14254) 14254 TOTAL SCORE: 55385 Bonus ------- High Alert Combat Kills 2841 Follower Combat Kills 3418 Entered Garrisons 800 Used RIF Installer 2000 Built Enhanced Grunts 300 Used Core Reset Matrix 3000 Scanned by Researcher 500 Acquired SGEMP 2000 Friendly Fire -605 Cogmind --------- Core Integrity 0/1450 Matter 300/300 Energy 590/700 System Corruption 1% Temperature Hot (297) Movement Core (750) Ox14 Location -2/Section 7 Parts ------- > --- POWER (2) -------- (None) > --- PROPULSION (4) --- (None) > --- UTILITY (14) ----- High-capacity Storage Unit Experimental Energy Well Advanced Target Analyzer Improved Hacking Suite > --- WEAPON (3) ------- Gravity Flail > --- INVENTORY (20) --- Myomer Leg Biometal Leg High-capacity Storage Unit Experimental Energy Well (600) Matter Compressor (250) Subatomic Replicator Core Cannon KE Penetrator KE Penetrator Hardcell Cannon Linear Accelerator Linear Accelerator Improved Remote Datajack Peak State ------------ > --- POWER ------------ Light Quantum Reactor > --- PROPULSION ------- Centrium Leg Centrium Leg Centrium Leg High-density Centrium Leg > --- UTILITY ---------- Advanced Heat Sink Advanced Coolant Injector Advanced Coolant Injector High-capacity Storage Unit Experimental Energy Well Advanced Target Analyzer Experimental Armor Integrity Analyzer Advanced Particle Charger Advanced Weapon Cycler Thermal Barrier Experimental Force Field Improved Hacking Suite Improved Hacking Suite Experimental Hacking Suite > --- WEAPON ----------- Enhanced Quantum Rifle Enhanced Quantum Rifle Improved Matter Neutralizer > --- INVENTORY -------- Myomer Leg Biometal Leg High-capacity Storage Unit Experimental Energy Well Matter Compressor Subatomic Replicator Quantum Rifle Core Cannon KE Penetrator KE Penetrator KE Penetrator Hardcell Cannon Linear Accelerator Linear Accelerator Fusion Bomb Launcher Improved Remote Datajack Gravity Flail [Rating: 186] Favorites ----------- Power Antimatter Reactor Engine Heavy Ion Engine Power Core Neutrino Core Reactor Antimatter Reactor Propulsion Light Treads Treads Light Treads Leg Carbon-fiber Leg Utility High-capacity Storage Unit Device Advanced Heat Sink Storage High-capacity Storage Unit Processor Advanced Target Analyzer Hackware Improved Hacking Suite Protection Layered Medium Armor Plating Weapon Improved Assault Rifle Energy Gun Enhanced Quantum Rifle Energy Cannon Matter Neutralizer Ballistic Gun Improved Assault Rifle Ballistic Cannon Heavy Linear Accelerator Launcher Rocket Launcher Special Weapon Remote Datajack Impact Weapon Great Maul Piercing Weapon Force Lance Build | -11 -10 -9 -9 -9 -8 -7 -7 -7 -7 -6 -6 -5 -5 -5 -5 -4 -4 -3 -3 -2 -2 -2 ------- Run | Jun Mat Mat Sto Gar Mat Fac Gar Fac Gar Fac Gar Fac Ext Cet Arc Fac Arm Res Tes Res Qua Sec Slots Evolved 16 | . . 2 . . 2 2 . . . 2 . 2 . . . 2 . 2 . 2 . . Power 1 | . . . . . . . . . . . . . . . . . . . . 1 . . Propulsion 2 | . . 1 . . . . . . . . . 1 . . . . . . . . . . Utility 12 | . . 1 . . 1 2 . . . 2 . 1 . . . 2 . 2 . 1 . . Weapon 1 | . . . . . 1 . . . . . . . . . . . . . . . . . Parts Attached 549 | 3 7 12 27 19 14 3 19 1 13 5 31 14 43 16 2 17 42 45 52 84 51 29 Power 51 | . . 2 5 . 1 . 2 . . . . 1 3 1 . 1 4 3 7 9 6 6 Engine 9 | . . 2 5 . 1 . 1 . . . . . . . . . . . . . . . Core 6 | . . . . . . . . . . . . 1 3 . . . . 1 1 . . . Reactor 36 | . . . . . . . 1 . . . . . . 1 . 1 4 2 6 9 6 6 Propulsion 102 | 2 . 2 8 . 3 . 3 . 1 1 7 2 19 2 . 6 6 6 4 20 3 7 Treads 49 | 2 . 2 8 . 3 . 3 . 1 1 . . 2 2 . 6 6 5 4 4 . . Leg 53 | . . . . . . . . . . . 7 2 17 . . . . 1 . 16 3 7 Wheel . | . . . . . . . . . . . . . . . . . . . . . . . Hover . | . . . . . . . . . . . . . . . . . . . . . . . Flight . | . . . . . . . . . . . . . . . . . . . . . . . Utility 195 | . 2 2 6 5 3 3 7 . 5 4 12 6 8 8 1 5 17 24 16 29 25 7 Device 66 | . 1 . . . 1 . 1 . . 2 4 1 3 2 . 1 10 8 11 7 10 4 Storage 12 | . 1 . . . 1 . . . . . . . . 1 . . 2 2 3 1 1 . Processor 18 | . . . 1 . . . 2 . . . . 1 . . . . 1 6 2 3 2 . Hackware 34 | . . . . 5 . 3 3 . 5 1 5 2 1 . 1 . 1 1 . 5 . 1 Protection 65 | . . 2 5 . 1 . 1 . . 1 3 2 4 5 . 4 3 7 . 13 12 2 Artifact . | . . . . . . . . . . . . . . . . . . . . . . . Weapon 201 | 1 5 6 8 14 7 . 7 1 7 . 12 5 13 5 1 5 15 12 25 26 17 9 Energy Gun 25 | . . 2 . . . . . . . . . . 4 1 . . 3 1 7 3 2 2 Energy Cannon 40 | . . 1 2 3 . . 1 1 1 . 5 1 1 . . 1 2 5 10 4 1 1 Ballistic Gun 84 | 1 5 3 5 7 4 . 2 . . . . . 4 4 1 4 8 3 1 18 11 3 Ballistic Cannon 14 | . . . . . . . 1 . . . 1 2 2 . . . . 1 3 . 3 1 Launcher 10 | . . . 1 2 . . 1 . 2 . 1 1 . . . . . . 1 . . 1 Special Weapon 21 | . . . . 2 3 . 2 . 4 . 5 1 . . . . 2 2 . . . . Impact Weapon 5 | . . . . . . . . . . . . . 1 . . . . . 2 1 . 1 Slashing Weapon . | . . . . . . . . . . . . . . . . . . . . . . . Piercing Weapon 2 | . . . . . . . . . . . . . 1 . . . . . 1 . . . Special Melee Weapon . | . . . . . . . . . . . . . . . . . . . . . . . Unidentified Prototypes 39 | . 1 3 3 . 1 . . . . . . . . 6 . . . 4 9 3 7 2 Corrupted Parts 17 | . . . . . . . . . 1 . 1 . 1 . . . 1 2 3 8 . . System Corruption 71 | . . . . . . . . . 3 . 1 . 2 . . . 3 5 15 42 . . Parts Lost 177 | . . . 2 . 1 4 . . . . 3 14 11 . . 15 22 14 22 18 22 29 Power 22 | . . . . . . . . . . . . 1 2 . . 1 4 . 2 2 4 6 Propulsion 27 | . . . . . 1 . . . . . 2 4 1 . . 2 3 2 4 2 2 4 Utility 82 | . . . 2 . . 3 . . . . 1 7 4 . . 9 7 9 9 8 13 10 Weapon 46 | . . . . . . 1 . . . . . 2 4 . . 3 8 3 7 6 3 9 Highest Loss Streak 18 | . . . 2 . 1 4 . . . . 2 10 5 . . 11 10 5 8 5 8 18 To Critical Strikes 5 | . . . . . . . . . . . . . . . . 1 . . 2 . . 2 Average Slot Usage (%) 88 | . 88 99 99 99 95 95 93 92 92 86 91 74 86 89 88 82 64 83 79 87 91 86 Engine 2 | . 14 11 10 11 9 7 6 . . . . . . . . . . . . . . . Reactor 3 | . . . . . . . . 7 7 6 6 1 . 4 5 4 4 2 3 7 7 5 Treads 11 | . 28 33 32 33 23 23 22 23 23 20 2 . . 9 11 10 11 8 8 3 . . Leg 7 | . . . . . . . . . . . 17 15 16 3 . . . 1 . 9 17 16 Device 11 | . 2 11 . . . 6 6 7 7 9 14 8 13 11 11 13 14 17 21 9 14 23 Storage 7 | . 14 11 11 11 9 7 7 7 7 6 6 5 5 5 5 5 5 7 11 8 4 8 Processor 7 | . . . 8 . . . 6 7 7 6 6 11 6 5 5 5 5 14 12 9 7 8 Hackware 10 | . . . . 12 16 22 19 15 21 20 13 9 10 11 11 9 1 5 4 15 10 8 Protection 7 | . . 10 12 9 9 5 . 7 1 3 10 4 8 16 17 16 3 9 . 8 14 1 Energy Gun 1 | . . . . . . . . . . . . . 3 1 . . 1 1 4 . . 7 Energy Cannon 2 | . . . 1 3 . . . 7 1 . 4 . . . . . 3 1 5 2 3 2 Ballistic Gun 8 | . 28 21 19 17 25 22 14 . . . . . 5 9 15 14 8 5 . 9 6 . Ballistic Cannon 2 | . . . . . . . 1 7 7 6 5 8 4 5 1 . . 1 1 . . . Naked Turns . | . . . . . . . . . . . . . . . . . . . . . . . Heaviest Build 146 | 14 52 59 62 60 64 64 95 102 102 97 113 106 93 94 94 112 103 116 118 146 144 125 Greatest Support 160 | 40 40 60 69 69 69 60 70 70 70 70 70 65 75 160 160 160 160 160 140 145 122 122 Greatest Overweight (x) 22 | . 1 . 1 . 1 1 1 1 1 1 7 4 22 1 . 1 1 3 1 3 1 1 Average Overweight (x) . | . . . . . . . . 1 1 1 1 1 1 . . . . . . . . . Largest Inventory Capacity 20 | 8 20 20 20 20 20 20 20 20 20 20 20 20 20 20 20 20 20 20 20 20 20 20 Average Capacity 19 | 8 8 20 20 20 20 20 20 20 20 20 20 20 20 20 20 20 20 20 20 20 20 20 Most Carried 20 | 6 8 20 20 20 19 17 20 20 20 20 20 19 20 20 20 20 20 20 20 20 20 20 Average Carried 18 | 4 5 12 19 19 18 15 17 20 19 19 19 15 18 19 19 19 16 16 17 18 19 18 Final Capacity 20 | 8 20 20 20 20 20 20 20 20 20 20 20 20 20 20 20 20 20 20 20 20 20 20 Final Carried 20 | 2 8 20 20 20 18 15 20 20 20 20 20 15 20 20 20 18 13 20 16 20 16 14 Class Distribution -------------------- 20% | Scavenger-Tank 13% | Bothacker-Gunner 12% | Bothacker-Mutant 8% | Mutant 8% | Commander-Mutant 8% | Hacker-Gunner 8% | Scavenger-Mutant 7% | Scavenger-Gunner 4% | Hacker-Mutant 3% | Hacker-Tank Dominant Class ---------------- Mutant | -10/Materials Mutant | -9/Materials Commander-Mutant | -9/Storage Mutant | -9/Garrison Bothacker-Tank | -8/Materials Hacker-Tank | -7/Factory Bothacker-Gunner | -7/Garrison Bothacker-Gunner | -7/Factory Bothacker-Mutant | -7/Garrison Bothacker-Mutant | -6/Factory Scavenger-Tank | -6/Garrison Bothacker-Gunner | -5/Factory Scavenger-Tank | -5/Extension Scavenger-Tank | -5/Cetus Scavenger-Tank | -5/Archives Scavenger-Tank | -4/Factory Scavenger-Mutant | -4/Armory Scavenger-Gunner | -3/Research Hacker-Gunner | -3/Testing Hacker-Gunner | -2/Research Scavenger-Tank | -2/Quarantine Hacker-Gunner | -2/Section 7 Resources | -11 -10 -9 -9 -9 -8 -7 -7 -7 -7 -6 -6 -5 -5 -5 -5 -4 -4 -3 -3 -2 -2 -2 ----------- Run | Jun Mat Mat Sto Gar Mat Fac Gar Fac Gar Fac Gar Fac Ext Cet Arc Fac Arm Res Tes Res Qua Sec Matter Collected 17093 | 230 192 362 594 715 275 . 508 . 615 224 1205 361 1758 411 48 578 995 1795 1162 2585 1763 717 Remotely 288 | . . . . . . . . . . . . . . . . . . . . 288 . . Salvage Created 25038 | . 104 764 952 464 349 58 414 . 83 370 654 805 1033 539 152 915 1810 3258 2695 4108 3606 1905 Parts 1136 | . 14 52 59 42 17 . 27 . 9 11 23 40 49 16 5 42 77 163 82 178 163 67 Haulers Intercepted 7 | . . 2 1 . 2 . . . . . . . . . . . . 1 . . . 1 Recyclers Shooed 14 | . . 1 . . 1 . . . . . . 5 3 . . . . 3 . . 1 . Parts Field Recycled . | . . . . . . . . . . . . . . . . . . . . . . . Retrieved Matter . | . . . . . . . . . . . . . . . . . . . . . . . Parts Self-Destructed . | . . . . . . . . . . . . . . . . . . . . . . . Prevented . | . . . . . . . . . . . . . . . . . . . . . . . Kills | -11 -10 -9 -9 -9 -8 -7 -7 -7 -7 -6 -6 -5 -5 -5 -5 -4 -4 -3 -3 -2 -2 -2 ------- Run | Jun Mat Mat Sto Gar Mat Fac Gar Fac Gar Fac Gar Fac Ext Cet Arc Fac Arm Res Tes Res Qua Sec Combat Hostiles Destroyed 377 | . 6 14 18 15 4 1 9 . 7 7 21 17 17 9 2 12 29 44 39 44 40 22 Guns 202 | . 6 14 18 12 4 1 7 . . . . . 9 6 2 11 18 21 10 30 20 13 Cannons 132 | . . . . . . . 1 . 3 6 20 13 7 3 . . 10 19 22 6 17 5 AOE 17 | . . . . 3 . . . . 4 1 . 4 . . . . . . 5 . . . Classes Destroyed 26 | . 1 5 2 1 3 . . . . . 2 2 . . . 2 2 1 3 1 1 . Worker 14 | . . . 2 . 1 . . . . 1 . 2 1 . . 1 . 3 . 2 . 1 Builder 20 | . . 2 . . . . . . . . . 4 . . . . . 2 5 1 4 2 Tunneler 2 | . . . . . . . . . . . . . . . . . . 1 . 1 . . Hauler 7 | . . 2 1 . 2 . . . . . . . . . . . . 1 . . . 1 Recycler 15 | . . . 1 . . . . . . 2 . 4 1 . . . . 4 . 2 1 . Mechanic 5 | . . . . . 1 . . . . . . 1 . . . . . 1 1 1 . . Operator 5 | . . 2 1 . . . . . . . . . 1 . . . . . . 1 . . Watcher 2 | . . . . . 1 . . . . . . 1 . . . . . . . . . . Swarmer 51 | . 6 3 3 6 1 . . . 7 3 7 . 5 . . . 4 6 . . . . Saboteur 2 | . . . . . . . . . . . . 1 . . . . . 1 . . . . Grunt 148 | . . 9 7 2 2 . 4 . . . 8 8 6 7 . 3 11 12 23 15 19 12 Brawler 4 | . . . . . . . . . . . 2 1 . . . . . 1 . . . . Duelist 3 | . . . . . . . . . . . . 1 . . . 1 1 . . . . . Protector 2 | . . . . . . . . . . . . . . . . . 1 1 . . . . Researcher 6 | . . . . . . . . . . . . . . . . . . . 3 . 3 . Sentry 44 | . . 2 8 3 . . . . . . 1 . 5 . 2 3 4 5 . 3 3 5 Demolisher 1 | . . . . . . . . . . . . . . . . . 1 . . . . . Specialist 3 | . . . . . . . . . . . . . . . . 1 . . . 2 . . Hunter 32 | . . . . . 1 1 . . . 3 . 2 . . . 3 . 2 6 6 6 2 Programmer 73 | . . . . 4 . . 5 . . 1 2 4 . . . . 7 16 8 14 9 3 Heavy 1 | . . . . . . . . . . . . . . . . 1 . . . . . . Q-Series 4 | . . . . . . . . . . . . . . . . . . . . 2 2 . Behemoth 4 | . . . . . . . . . . . 2 . . . . . . . . 2 . . Cetus Guard 2 | . . . . . . . . . . . . . . 2 . . . . . . . . Striker 1 | . . . . . . . . . . . . . . . . . . . 1 . . . Alpha 7 1 | . . . . . . . . . . . . . . . . . . . 1 . . . Fortress 1 | . . . . . . . . . . . . . . . . . . . . . 1 . Thug 2 | . . . . . . . . . . . . . 2 . . . . . . . . . Guerrilla 1 | . . . . . . . . . . . . . 1 . . . . . . . . . Best Kill Streak 22 | . 3 9 4 4 4 1 3 . 4 4 4 22 4 6 2 4 6 11 8 14 5 5 Combat Bots Only 12 | . 3 5 3 4 2 1 3 . 4 3 4 12 4 6 2 3 6 8 6 7 4 3 Max Kills in Single Turn 4 | . 1 2 2 2 1 1 2 . 3 2 1 4 2 1 1 1 2 2 3 1 2 1 Gunslinging 1 | . . . . 1 . . 1 . . . . . . . . . . . 1 . . . Exploded 3 | . . . . 2 . . . . 3 1 . 2 . . . . . . 3 . . . Melee . | . . . . . . . . . . . . . . . . . . . . . . . Uniques/NPCs Destroyed . | . . . . . . . . . . . . . . . . . . . . . . . Combat | -11 -10 -9 -9 -9 -8 -7 -7 -7 -7 -6 -6 -5 -5 -5 -5 -4 -4 -3 -3 -2 -2 -2 -------- Run | Jun Mat Mat Sto Gar Mat Fac Gar Fac Gar Fac Gar Fac Ext Cet Arc Fac Arm Res Tes Res Qua Sec Damage Taken 43552 | . 102 617 538 608 238 382 487 . 25 511 1372 1985 1856 478 . 5044 4652 4114 5477 5185 5913 3968 Core 4178 | . 25 59 54 73 7 64 51 . . 53 137 191 271 14 . 274 276 324 684 348 617 656 Absorbed by Shields 1860 | . . . . . . . . . . . 29 . 100 . . . . 943 315 282 . 191 Reduced by Siege Mode 525 | . . . . . . . . . . . . . . 15 . . 286 44 14 166 . . Redirected to Shielding 529 | . . . . . . . . . . . . . . . . . 47 324 34 21 103 . Regen/Repaired (Parts) 795 | . . . 304 . . . . . . . . . . . . . 261 230 . . . . Core Remaining (%) 69 | 100 90 . . 53 98 . . . 83 . 77 . . . 52 . 52 . 22 . . . Volleys Fired 1234 | . 9 51 50 55 23 9 35 . 15 34 76 35 54 16 2 42 80 145 103 176 153 71 Largest 3 | . 2 2 2 2 3 3 3 . 2 1 2 2 3 3 3 3 3 3 3 3 3 3 Hottest 272 | . 46 46 68 91 69 69 114 . 188 83 188 188 169 162 118 175 240 148 270 268 196 272 Shots Fired 2701 | . 18 102 90 95 50 26 65 . 17 34 103 55 135 46 6 122 171 302 227 448 409 180 Gun 1771 | . 18 102 80 74 41 26 43 . . . . . 88 30 4 116 119 183 93 365 256 133 Cannon 837 | . . . 10 15 . . 9 . 8 21 82 44 47 16 2 6 49 115 130 83 153 47 Launcher 20 | . . . . 2 . . 1 . 2 . 2 9 . . . . . . 4 . . . Special 73 | . . . . 4 9 . 12 . 7 13 19 2 . . . . 3 4 . . . . Kinetic 1726 | . 18 102 80 74 41 26 46 . 7 21 53 40 92 43 6 116 100 192 45 345 261 18 Thermal 757 | . . . 10 15 . . 6 . 1 . 29 4 43 3 . 6 68 53 153 56 148 162 Explosive 20 | . . . . 2 . . 1 . 2 . 2 9 . . . . . . 4 . . . Electromagnetic 125 | . . . . . . . . . . . . . . . . . . 53 25 47 . . Robot Hit Streak 69 | . 8 21 28 24 25 25 20 . 9 6 24 20 22 21 16 38 57 62 39 34 69 28 Robot Miss Streak 7 | . 1 2 1 2 2 1 1 . 1 2 2 1 2 1 . 3 2 3 2 4 7 2 Penetration Max 2 | . . . . . . . . . . . . 1 1 1 . 1 1 1 2 1 2 1 Secondary Targets 21 | . . 1 2 2 1 . 1 . . . . . . . . 2 . 3 3 5 . 1 Max Gunslinging Chain 1 | . . 1 1 1 1 . 1 . . . . . . . . 1 . 1 1 1 . 1 Shots Hit Robots 2028 | . 13 85 74 58 39 22 39 . 9 25 67 40 99 35 2 92 131 236 187 356 283 136 Core Hits 860 | . 6 31 33 21 18 5 17 . 7 8 19 58 48 22 2 38 45 83 89 121 131 58 Critical Kills 66 | . . . 1 . 1 . 2 . . . 1 . . 2 2 5 11 10 6 15 7 3 Critical Parts Destroyed 87 | . . . 1 . . 1 . . . . . . 2 4 . 11 17 10 5 29 6 1 Critical Strikes 218 | . . . 2 . 1 1 2 . . 2 8 3 9 8 2 17 30 38 21 51 18 5 Burn 5 | . . . . . . . . . . . . . 3 . . . . . 2 . . . Meltdown 14 | . . . . . . . 1 . . . 1 . . . . 1 1 . 1 2 4 3 Destroy 140 | . . . 2 . 1 1 1 . . . . . 1 6 2 16 29 21 8 42 9 1 Blast 43 | . . . . . . . . . . 2 7 3 4 2 . . . 12 7 . 5 1 Corrupt 13 | . . . . . . . . . . . . . . . . . . 5 1 7 . . Smash 3 | . . . . . . . . . . . . . 1 . . . . . 2 . . . Melee Attacks 41 | . . . . . . . . . . . . . 29 . . . . . 11 . . 1 Impact 18 | . . . . . . . . . . . . . 6 . . . . . 11 . . 1 Slashing . | . . . . . . . . . . . . . . . . . . . . . . . Piercing 23 | . . . . . . . . . . . . . 23 . . . . . . . . . Sneak Attacks 3 | . . . . . . . . . . . . . 1 . . . . . 2 . . . Combat Hostiles . | . . . . . . . . . . . . . . . . . . . . . . . Follow-up Attacks . | . . . . . . . . . . . . . . . . . . . . . . . Damage Inflicted 68422 | . 176 1315 1205 1098 501 285 572 . 461 1299 3198 4303 3250 1073 54 2861 4752 9578 8238 10805 8476 4922 Guns 34470 | . 176 1315 1066 890 501 283 365 . . . . . 1828 762 54 2621 2855 3772 2323 8276 3888 3495 Cannons 28872 | . . . 101 25 . . 207 . 304 992 3198 2037 1242 311 . 179 1860 5806 4172 2519 4588 1331 Explosions 4289 | . . . . 183 . . . . 157 288 . 2253 . . . . . . 1408 . . . Melee 513 | . . . . . . . . . . . . . 156 . . . . . 261 . . 96 Ramming 278 | . . . 38 . . 2 . . . 19 . 13 24 . . 61 37 . 74 10 . . Kinetic 40219 | . 176 1315 1066 890 501 283 444 . 304 992 2499 1895 2102 1000 54 2621 2407 7005 1298 8037 4786 544 Thermal 20284 | . . . 101 25 . . 128 . . 288 699 142 968 73 . 179 2308 1298 4483 1620 3690 4282 Explosive 3973 | . . . . 183 . . . . 157 . . 2225 . . . . . . 1408 . . . Electromagnetic 3155 | . . . . . . . . . . . . 28 . . . . . 1275 714 1138 . . Impact 513 | . . . . . . . . . . . . . 156 . . . . . 261 . . 96 Slashing . | . . . . . . . . . . . . . . . . . . . . . . . Piercing . | . . . . . . . . . . . . . . . . . . . . . . . Highest Corruption 56 | . . . . 2 . 6 7 7 10 . 1 8 10 10 10 1 13 24 56 49 55 1 Average Corruption 17 | . . . . 1 . 5 6 7 7 . 1 4 9 10 10 1 5 12 39 38 50 1 Corruption Purged 15 | . . . . . . . . . . . . . . . . . . . 5 10 . . Corruption Blocked 65 | . . . . . . . . . . . . . . . . . . 15 30 . 20 . Effects 745 | . . . . 4 . 1 50 2 30 . 14 25 137 19 3 2 19 73 128 125 112 1 Message Errors 168 | . . . . 1 . 1 16 1 7 . 2 7 34 4 2 1 5 17 28 24 18 . Matter Fused 142 | . . . . 2 . . 10 . 8 . 3 3 30 5 . . 3 14 26 24 14 . Heat Flow Errors 90 | . . . . . . . 6 . 4 . 1 4 17 4 1 . 1 9 12 19 12 . Energy Discharges 84 | . . . . . . . 5 1 5 . 4 4 14 1 . 1 1 6 16 14 11 1 Parts Rejected 13 | . . . . . . . 1 . . . . . . . . . 2 1 3 4 2 . Parts Fused 7 | . . . . . . . 1 . 1 . . . 3 . . . . . 2 . . . Data Loss (minor) 69 | . . . . 1 . . 5 . 2 . 3 2 17 2 . . . 11 8 11 7 . Data Loss (major) 38 | . . . . . . . 2 . 2 . . 1 12 1 . . 4 2 8 1 5 . Misfires 22 | . . . . . . . 3 . 1 . . 1 4 1 . . 1 3 3 1 4 . Alerts 18 | . . . . . . . 1 . . . 1 1 3 . . . 1 2 4 4 1 . Misdirections 20 | . . . . . . . . . . . . . . . . . . . 6 4 10 . Weapon Failures 74 | . . . . . . . . . . . . 2 3 1 . . 1 8 12 19 28 . Overload Shots 8 | . . . . . . . . . . . . . . . . . 7 . 1 . . . Overflow Damage 2495 | . . . . 20 . . . . . 264 324 165 162 . . 9 212 788 430 91 30 . Projectiles 1942 | . . . . . . . . . . 134 324 130 68 . . 4 212 788 161 91 30 . Explosions 233 | . . . . 20 . . . . . 130 . 35 . . . . . . 48 . . . Melee 320 | . . . . . . . . . . . . . 94 . . 5 . . 221 . . . Knockbacks 75 | . . . . . . . . . 1 4 8 9 7 4 . . . 23 15 . 2 2 Impact 7 | . . . . . . . . . . . . . 3 . . . . . 3 . . 1 Kinetic 60 | . . . . . . . . . 1 4 8 9 3 4 . . . 19 9 . 2 1 Secondary 8 | . . . . . . . . . . . . . 1 . . . . 4 3 . . . Self-Inflicted Damage 284 | . . . . . . . 2 . . 51 50 156 . . . . . . 25 . . . Shots 11 | . . . . . . . 1 . . 2 1 5 . . . . . . 2 . . . Rammed 19 | . . . 3 . . 1 . . . 1 . . . . . 6 3 . 5 . . . Targets Rammed 26 | . . . 4 . . 1 . . . 1 . 2 3 . . 6 3 . 5 1 . . Kicked 6 | . . . . . . . . . . . . 2 3 . . . . . . 1 . . Crushed 1 | . . . 1 . . . . . . . . . . . . . . . . . . . Highest Temperature 562 | . 12 71 198 48 . . 247 . 229 1 405 216 351 244 221 120 285 470 513 562 281 405 Average Temperature 93 | . 7 23 66 11 . . 75 . 74 1 121 74 96 65 112 28 87 103 141 108 40 116 Received Heat Transfer 8522 | . . 402 222 171 45 . 192 . 9 24 517 578 399 264 . 1141 1143 533 1067 600 810 405 Effects 17 | . . . . . . . . . . . 2 . . . . . . 1 5 9 . . Shutdowns 5 | . . . . . . . . . . . 1 . . . . . . . 1 3 . . Energy Bleed 2 | . . . . . . . . . . . 1 . . . . . . . . 1 . . Interference 3 | . . . . . . . . . . . . . . . . . . . 3 . . . Matter Decay 2 | . . . . . . . . . . . . . . . . . . . . 2 . . Short Circuit 3 | . . . . . . . . . . . . . . . . . . 1 . 2 . . Damage (minor) 1 | . . . . . . . . . . . . . . . . . . . 1 . . . Damage (major) 1 | . . . . . . . . . . . . . . . . . . . . 1 . . Siege Activations 7 | . . . . . . . . . . . . . . 1 . . 2 1 1 2 . . Total Turns 148 | . . . . . . . . . . . . . . 18 . . 30 18 13 69 . . Longest Duration 45 | . . . . . . . . . . . . . . 18 . . 21 18 13 45 . . Robots Corrupted 10 | . . . . . . . . . . . . . . . . . . 4 . 6 . . Combat Hostiles 10 | . . . . . . . . . . . . . . . . . . 4 . 6 . . Parts Fried 33 | . . . . . . . . . . . . . 2 . . . . 8 13 10 . . Impact Corruptions 14 | . . . . . . . . . . . . . 2 . . 1 . 1 10 . . . Robots Melted 16 | . . . . . . . 1 . . . 1 . . . . 1 1 . 2 2 4 4 Combat Hostiles 15 | . . . . . . . 1 . . . 1 . . . . 1 1 . 2 2 3 4 Parts Melted 58 | . . . 1 . . . 4 . . . 1 . 1 . . . 4 3 17 3 13 11 Heat Transferred 22037 | . . . 185 37 . . 185 . . 150 703 148 1573 111 . 147 1969 1646 4897 1554 4218 4514 Parts Sabotaged . | . . . . . . . . . . . . . . . . . . . . . . . Parts Stolen . | . . . . . . . . . . . . . . . . . . . . . . . Parts Stripped . | . . . . . . . . . . . . . . . . . . . . . . . Power Chain Reactions . | . . . . . . . . . . . . . . . . . . . . . . . Missiles Intercepted . | . . . . . . . . . . . . . . . . . . . . . . . Alert | -11 -10 -9 -9 -9 -8 -7 -7 -7 -7 -6 -6 -5 -5 -5 -5 -4 -4 -3 -3 -2 -2 -2 ------- Run | Jun Mat Mat Sto Gar Mat Fac Gar Fac Gar Fac Gar Fac Ext Cet Arc Fac Arm Res Tes Res Qua Sec Peak Influence 1995 | . 204 348 233 1027 493 61 714 334 764 404 1995 1179 486 362 213 945 806 634 466 461 484 257 Initial 907 | . . 1 97 18 430 31 12 324 206 347 248 907 406 . 54 61 378 268 228 116 8 135 Average 392 | . 85 169 128 625 274 35 447 331 520 330 1081 968 119 152 182 509 556 455 268 233 186 126 Maximum Alert Level 5 | . 1 1 1 3 2 . 3 1 3 2 5 4 2 1 1 3 3 2 2 2 2 1 Low Security (%) 37 | 100 79 49 78 11 18 100 17 . . 6 . . 79 96 26 30 . . 30 49 49 90 Level 1 26 | . 20 50 21 10 57 . 15 100 48 91 12 . 10 3 73 5 7 23 57 45 43 9 Level 2 20 | . . . . 39 24 . 59 . 24 2 18 . 10 . . 28 76 76 12 5 6 . Level 3 10 | . . . . 38 . . 7 . 27 . 15 97 . . . 35 16 . . . . . Level 4 3 | . . . . . . . . . . . 36 2 . . . . . . . . . . Level 5 1 | . . . . . . . . . . . 17 . . . . . . . . . . . High Security . | . . . . . . . . . . . . . . . . . . . . . . . Max Security . | . . . . . . . . . . . . . . . . . . . . . . . Squads Dispatched 79 | . . 2 3 . 2 1 . . . 3 . 7 2 . . 6 7 10 11 8 11 6 Investigation 5 | . . . . . 1 . . . . . . . . . . . 1 . 2 . 1 . Extermination 24 | . . . . . . . . . . 1 . 1 . . . . 2 6 3 5 4 2 Reinforcement 39 | . . 2 3 . 1 . . . . 2 . 3 2 . . 4 . 3 6 3 6 4 Assault 9 | . . . . . . . . . . . . 3 . . . 1 4 1 . . . . Garrison 2 | . . . . . . 1 . . . . . . . . . 1 . . . . . . Intercept . | . . . . . . . . . . . . . . . . . . . . . . . Searches Triggered . | . . . . . . . . . . . . . . . . . . . . . . . Construction Impeded 10 | . . . . . . . . . . . . 3 . . . 1 . . 3 1 2 . Haulers Reinforced 2 | . . . . . . . . . . . . . . . . 1 . 1 . . . . Active Scanning Responses . | . . . . . . . . . . . . . . . . . . . . . . . Cargo Convoy Interrupts 1 | . . . . . . . . . . . . . . . . . . 1 . . . . Stealth | -11 -10 -9 -9 -9 -8 -7 -7 -7 -7 -6 -6 -5 -5 -5 -5 -4 -4 -3 -3 -2 -2 -2 --------- Run | Jun Mat Mat Sto Gar Mat Fac Gar Fac Gar Fac Gar Fac Ext Cet Arc Fac Arm Res Tes Res Qua Sec Distress Signals 35 | . 2 3 4 1 2 . . . . 3 . . 5 1 . 1 2 . 2 2 4 3 Communications Jammed . | . . . . . . . . . . . . . . . . . . . . . . . Distress Signals . | . . . . . . . . . . . . . . . . . . . . . . . Times Spotted 681 | . 12 22 29 34 18 3 22 1 22 17 40 33 42 19 4 36 46 65 62 54 55 45 Peak Tracking Total 14 | . 5 5 4 7 5 2 3 1 4 6 4 12 5 8 1 10 14 6 7 7 5 8 Tactical Retreats 14 | . 1 2 1 . 2 . . . . . 1 1 . . . . . 2 3 1 . . Traps | -11 -10 -9 -9 -9 -8 -7 -7 -7 -7 -6 -6 -5 -5 -5 -5 -4 -4 -3 -3 -2 -2 -2 ------- Run | Jun Mat Mat Sto Gar Mat Fac Gar Fac Gar Fac Gar Fac Ext Cet Arc Fac Arm Res Tes Res Qua Sec Traps Triggered 26 | . . . 3 . . . 4 . . . 7 1 3 . . . . 1 2 2 2 1 Indirectly . | . . . . . . . . . . . . . . . . . . . . . . . Trap Hack Attempts . | . . . . . . . . . . . . . . . . . . . . . . . Triggered . | . . . . . . . . . . . . . . . . . . . . . . . Disarmed . | . . . . . . . . . . . . . . . . . . . . . . . Reprogrammed . | . . . . . . . . . . . . . . . . . . . . . . . Reused . | . . . . . . . . . . . . . . . . . . . . . . . Traps Extracted . | . . . . . . . . . . . . . . . . . . . . . . . Installed . | . . . . . . . . . . . . . . . . . . . . . . . Triggered 1 | . . . . . . . . . . . . . . . . . . 1 . . . . Machines | -11 -10 -9 -9 -9 -8 -7 -7 -7 -7 -6 -6 -5 -5 -5 -5 -4 -4 -3 -3 -2 -2 -2 ---------- Run | Jun Mat Mat Sto Gar Mat Fac Gar Fac Gar Fac Gar Fac Ext Cet Arc Fac Arm Res Tes Res Qua Sec Machines Disabled 99 | . . 2 3 4 1 . 5 . 4 7 11 4 4 1 2 28 7 2 3 1 6 4 Max in Single Turn 4 | . . 2 1 1 1 . 2 . 2 4 2 2 1 1 1 1 2 1 1 1 1 1 Garrison Access 4 | . . . . . . . . . . . . . . . . 1 . . 1 1 1 . Garrison Relay 12 | . . . . 4 . . 3 . 2 . 3 . . . . . . . . . . . Phase Generator 3 | . . . . . . . 1 . 1 . 1 . . . . . . . . . . . Machines Repaired . | . . . . . . . . . . . . . . . . . . . . . . . Machines Sabotaged . | . . . . . . . . . . . . . . . . . . . . . . . Overloaded Fab Kills . | . . . . . . . . . . . . . . . . . . . . . . . Hacking | -11 -10 -9 -9 -9 -8 -7 -7 -7 -7 -6 -6 -5 -5 -5 -5 -4 -4 -3 -3 -2 -2 -2 --------- Run | Jun Mat Mat Sto Gar Mat Fac Gar Fac Gar Fac Gar Fac Ext Cet Arc Fac Arm Res Tes Res Qua Sec Machines Accessed 73 | . 3 . 11 4 2 1 2 1 2 2 3 1 5 3 . 2 4 3 9 3 8 4 Terminals 58 | . 3 . 8 4 2 . 2 . 2 . 3 1 5 3 . 1 2 3 6 2 7 4 Fabricators 4 | . . . . . . . . . . 1 . . . . . . 2 . 1 . . . Repair Stations 3 | . . . 2 . . . . . . . . . . . . . . . 1 . . . Recycling Units . | . . . . . . . . . . . . . . . . . . . . . . . Scanalyzers . | . . . . . . . . . . . . . . . . . . . . . . . Garrison Access 8 | . . . 1 . . 1 . 1 . 1 . . . . . 1 . . 1 1 1 . Total Hacks 154 | . 4 . 23 5 10 1 2 1 3 3 3 7 9 10 . 6 6 3 17 6 22 13 Successful 87 | . 1 . 19 2 4 1 2 1 1 1 3 4 3 2 . 5 1 1 6 4 17 9 Failed 67 | . 3 . 4 3 6 . . . 2 2 . 3 6 8 . 1 5 2 11 2 5 4 Catastrophic 16 | . 1 . . 2 1 . . . 1 1 . . 1 1 . . 2 . 3 1 1 1 Database Lockouts . | . . . . . . . . . . . . . . . . . . . . . . . Manual 38 | . . . 4 . 1 . . . . 2 . 4 2 1 . 4 . 2 . 5 6 7 Terminals 131 | . 4 . 14 5 10 . 2 . 3 . 3 7 9 10 . 5 3 3 14 5 21 13 Fabricators 6 | . . . . . . . . . . 2 . . . . . . 3 . 1 . . . Repair Stations 8 | . . . 7 . . . . . . . . . . . . . . . 1 . . . Recycling Units . | . . . . . . . . . . . . . . . . . . . . . . . Scanalyzers . | . . . . . . . . . . . . . . . . . . . . . . . Garrison Access 9 | . . . 2 . . 1 . 1 . 1 . . . . . 1 . . 1 1 1 . Terminal Hacks 64 | . 1 . 10 2 3 . 2 . 1 . 3 4 3 2 . 3 . 1 4 2 15 8 Record 8 | . . . . . . . . . . . . . . 2 . . . . . . 6 . Part Schematic 2 | . . . 1 . . . . . . . . . . . . . . . . . 1 . Robot Analysis 2 | . . . 1 . . . . . . . . . . . . . . . . . 1 . Prototype ID Bank 4 | . . . 2 . . . . . . . . 1 . . . . . . . . . 1 Open Door 7 | . . . 3 1 . . . . . . . . 2 . . . . . 1 . . . Branch Access Points 6 | . . . . . . . . . . . . 1 . . . 1 . 1 1 1 1 . Emergency Access Points 2 | . . . . 1 . . . . . . 1 . . . . . . . . . . . Machine Index 2 | . . . . . . . . . . . . . . . . . . . . . 1 1 Terminal Index 7 | . . . 1 . 1 . . . . . . 1 . . . 1 . . . 1 1 1 Unreport Threat 6 | . . . . . 2 . . . . . . . . . . . . . 1 . 2 1 Recall Reinforcements 1 | . . . . . . . . . . . . . . . . . . . . . . 1 Registered Prototypes 1 | . . . 1 . . . . . . . . . . . . . . . . . . . Zone Layout 11 | . 1 . 1 . . . . . . . . 1 1 . . 1 . . 1 . 2 3 Garrison Registry 3 | . . . . . . . 1 . 1 . 1 . . . . . . . . . . . Patrol Navigation 1 | . . . . . . . . . . . 1 . . . . . . . . . . . Security Stations 1 | . . . . . . . 1 . . . . . . . . . . . . . . . Fabricator Hacks 2 | . . . . . . . . . . . . . . . . . 1 . 1 . . . Network Status 2 | . . . . . . . . . . . . . . . . . 1 . 1 . . . Repair Station Hacks 6 | . . . 6 . . . . . . . . . . . . . . . . . . . Scan Component 3 | . . . 3 . . . . . . . . . . . . . . . . . . . Repair 3 | . . . 3 . . . . . . . . . . . . . . . . . . . Recycling Unit Hacks . | . . . . . . . . . . . . . . . . . . . . . . . Scanalyzer . | . . . . . . . . . . . . . . . . . . . . . . . Garrison Access Hacks 8 | . . . 1 . . 1 . 1 . 1 . . . . . 1 . . 1 1 1 . Unlock Access 4 | . . . 1 . . 1 . 1 . 1 . . . . . . . . . . . . Seal Access 4 | . . . . . . . . . . . . . . . . 1 . . 1 1 1 . Unauthorized Hacks 7 | . . . 2 . 1 . . . . . . . . . . 1 . . . 1 1 1 Terminals 7 | . . . 2 . 1 . . . . . . . . . . 1 . . . 1 1 1 Botnet 7 | . . . 2 . 1 . . . . . . . . . . 1 . . . 1 1 1 Fabricators . | . . . . . . . . . . . . . . . . . . . . . . . Repair Stations . | . . . . . . . . . . . . . . . . . . . . . . . Recycling Units . | . . . . . . . . . . . . . . . . . . . . . . . Scanalyzers . | . . . . . . . . . . . . . . . . . . . . . . . Garrison Access . | . . . . . . . . . . . . . . . . . . . . . . . Data Cores Recovered . | . . . . . . . . . . . . . . . . . . . . . . . Used . | . . . . . . . . . . . . . . . . . . . . . . . Hacking Detections 51 | . 2 . 8 3 2 1 1 . 2 1 3 . 4 3 . . 4 2 5 2 4 4 Full Trace Events 3 | . . . . . 1 . . . . . . . . . . . 1 . 1 . . . Feedback Events 1 | . . . . . . . . . . . . . . . . . 1 . . . . . Corruption 1 | . . . . . . . . . . . . . . . . . 1 . . . . . Feedback Blocked . | . . . . . . . . . . . . . . . . . . . . . . . Robot Schematics Acquired 5 | . . . . . . . . . . . . . . . . . . . . . 5 . Robots Built . | . . . . . . . . . . . . . . . . . . . . . . . Authchips . | . . . . . . . . . . . . . . . . . . . . . . . Time . | . . . . . . . . . . . . . . . . . . . . . . . Total Robot Build Rating . | . . . . . . . . . . . . . . . . . . . . . . . Part Schematics Acquired 13 | . . . 1 . . . . . . . . . . . . . . . 8 . 4 . Parts Built . | . . . . . . . . . . . . . . . . . . . . . . . Authchips . | . . . . . . . . . . . . . . . . . . . . . . . Time . | . . . . . . . . . . . . . . . . . . . . . . . Total Part Build Rating . | . . . . . . . . . . . . . . . . . . . . . . . Parts Repaired 3 | . . . 3 . . . . . . . . . . . . . . . . . . . Time 109 | . . . 109 . . . . . . . . . . . . . . . . . . . Parts Recycled . | . . . . . . . . . . . . . . . . . . . . . . . Recycled Matter . | . . . . . . . . . . . . . . . . . . . . . . . Retrieved Matter . | . . . . . . . . . . . . . . . . . . . . . . . Retrieved Components . | . . . . . . . . . . . . . . . . . . . . . . . Parts Scanalyzed . | . . . . . . . . . . . . . . . . . . . . . . . Part Schematics Acquired . | . . . . . . . . . . . . . . . . . . . . . . . Parts Damaged . | . . . . . . . . . . . . . . . . . . . . . . . Bothacking | -11 -10 -9 -9 -9 -8 -7 -7 -7 -7 -6 -6 -5 -5 -5 -5 -4 -4 -3 -3 -2 -2 -2 ------------ Run | Jun Mat Mat Sto Gar Mat Fac Gar Fac Gar Fac Gar Fac Ext Cet Arc Fac Arm Res Tes Res Qua Sec Used RIF Installer 4 | . . . . 1 . . 1 . 1 . 1 . . . . . . . . . . . Hotswap 1 | . . . . . . . . . 1 . . . . . . . . . . . . . Command Fork 1 | . . . . . . . . . . . 1 . . . . . . . . . . . Structural Interface 1 | . . . . . . . 1 . . . . . . . . . . . . . . . Robots Hacked 42 | . . . . 3 6 . 7 . 3 10 9 2 . . . . 1 1 . . . . Non-combat 13 | . . . . . . . . . . 9 . 2 . . . . 1 1 . . . . Combat 29 | . . . . 3 6 . 7 . 3 1 9 . . . . . . . . . . . Robot Hacks Applied 45 | . . . . 4 6 . 7 . 3 11 9 2 . . . . 2 1 . . . . parse_system 1 | . . . . . . . . . . . . 1 . . . . . . . . . . map_walls 2 | . . . . . . . . . . 1 . 1 . . . . . . . . . . find_terminals 1 | . . . . . . . . . . 1 . . . . . . . . . . . . relay_feed 1 | . . . . . . . . . . 1 . . . . . . . . . . . . link_fov 7 | . . . . . . . . . . 7 . . . . . . . . . . . . spike_heat 1 | . . . . . . . . . . . 1 . . . . . . . . . . . overload_power 1 | . . . . . 1 . . . . . . . . . . . . . . . . . disable_weapons 1 | . . . . . 1 . . . . . . . . . . . . . . . . . formatsys_low 3 | . . . . . . . . . . . . . . . . . 2 1 . . . . formatsys_high 27 | . . . . 4 4 . 7 . 3 1 8 . . . . . . . . . . . Relay Couplers Released 58 | . . . . 21 . . 12 . 10 . 12 . . . . . . . 3 . . . Machine Destruction 51 | . . . . 17 . . 12 . 10 . 12 . . . . . . . . . . . Programmers 7 | . . . . 4 . . . . . . . . . . . . . . 3 . . . Attached 21 | . . . . 5 . 1 3 . 5 1 5 . . . . . 1 . . . . . Fabnet Peak Effective % . | . . . . . . . . . . . . . . . . . . . . . . . Robots Rewired 25 | . . . . . . . 4 . . . . . 21 . . . . . . . . . Allies Hacked 2 | . . . . 1 . . . . . . 1 . . . . . . . . . . . Hacks Repelled . | . . . . . . . . . . . . . . . . . . . . . . . Allies | -11 -10 -9 -9 -9 -8 -7 -7 -7 -7 -6 -6 -5 -5 -5 -5 -4 -4 -3 -3 -2 -2 -2 -------- Run | Jun Mat Mat Sto Gar Mat Fac Gar Fac Gar Fac Gar Fac Ext Cet Arc Fac Arm Res Tes Res Qua Sec Total Allies 75 | . . . 10 4 4 . 11 . 5 1 8 . 25 5 . . 1 1 . . . . Largest Group 15 | . . . 10 10 3 . 7 7 9 2 4 2 15 5 5 5 1 1 . . . . Highest-Rated Group 571 | . . . 88 88 38 . 205 205 237 124 115 64 571 480 480 473 34 23 . . . . Highest-Rated Ally 159 | . . . 16 25 16 . 39 39 62 62 32 32 159 143 96 96 34 23 . . . . Total Orders 28 | . . . 2 . . . 5 . 4 . 7 . 7 . . . 2 1 . . . . STAY 15 | . . . 1 . . . 3 . 2 . 3 . 6 . . . . . . . . . FOLLOW 10 | . . . 1 . . . 2 . 2 . 4 . 1 . . . . . . . . . AID 3 | . . . . . . . . . . . . . . . . . 2 1 . . . . Ally Attacks 631 | . . . 2 93 36 . 28 2 58 20 87 8 184 29 14 70 . . . . . . Total Damage 16031 | . . . 20 1083 422 . 951 39 1147 723 1799 245 4549 910 447 3696 . . . . . . Kills 128 | . . . 1 16 6 . 7 1 14 9 10 2 33 8 2 19 . . . . . . Allies Corrupted 2 | . . . . 1 . . . . . . . 1 . . . . . . . . . . Allies Melted 1 | . . . . . . . . . . . 1 . . . . . . . . . . . Intel | -11 -10 -9 -9 -9 -8 -7 -7 -7 -7 -6 -6 -5 -5 -5 -5 -4 -4 -3 -3 -2 -2 -2 ------- Run | Jun Mat Mat Sto Gar Mat Fac Gar Fac Gar Fac Gar Fac Ext Cet Arc Fac Arm Res Tes Res Qua Sec Robot Analysis Total 2 | . . . 1 . . . . . . . . . . . . . . . . . 1 . Derelict Logs Recovered . | . . . . . . . . . . . . . . . . . . . . . . . Drone Launches . | . . . . . . . . . . . . . . . . . . . . . . . Drone Recoveries . | . . . . . . . . . . . . . . . . . . . . . . . Exploration | -11 -10 -9 -9 -9 -8 -7 -7 -7 -7 -6 -6 -5 -5 -5 -5 -4 -4 -3 -3 -2 -2 -2 ------------- Run | Jun Mat Mat Sto Gar Mat Fac Gar Fac Gar Fac Gar Fac Ext Cet Arc Fac Arm Res Tes Res Qua Sec Turns Passed 28958 | 8 474 672 2095 1942 436 79 1781 48 955 990 2733 1082 3844 545 118 655 853 2097 2122 2446 1790 1193 Spaces Moved 12125 | 3 260 236 974 1058 157 20 714 19 365 367 871 357 1381 228 61 297 329 855 1010 1012 870 681 Core 56 | . . . . . . . . . . . . . 56 . . . . . . . . . Treads 7442 | 1 260 236 974 1058 157 20 714 19 365 367 110 . 44 197 61 297 329 855 1010 368 . . Legs 4627 | 2 . . . . . . . . . . 761 357 1281 31 . . . . . 644 870 681 Wheels . | . . . . . . . . . . . . . . . . . . . . . . . Hover . | . . . . . . . . . . . . . . . . . . . . . . . Flight . | . . . . . . . . . . . . . . . . . . . . . . . Fastest Speed 117 | 120 160 160 160 160 160 160 160 240 240 240 240 187 190 160 160 160 152 145 145 117 120 120 Average Speed 187 | 133 164 160 164 160 205 220 226 240 240 240 262 225 234 165 160 160 162 169 149 178 150 133 Slowest Speed 1150 | 160 240 160 240 160 240 240 240 240 240 240 610 400 1150 240 160 240 250 400 225 330 190 190 Overloaded Moves . | . . . . . . . . . . . . . . . . . . . . . . . Propulsion Burnouts . | . . . . . . . . . . . . . . . . . . . . . . . Robots Hopped 3 | . . . . . . . . . . . 3 . . . . . . . . . . . Cave-ins Triggered 2 | . . . . . . . . . . . . . . . . 1 . . 1 . . . Exploration Rate (%) 46 | 1 55 27 72 92 26 1 79 . 63 19 86 11 95 61 72 13 30 26 77 22 72 33 Regions Visited 22 Branch Regions 8 Pre-discovered Areas . | . . . . . . . . . . . . . . . . . . . . . . . Known Exits Taken 8 | . . . 1 . . 1 . 1 . 1 . 1 . . . 1 . 1 . 1 . . Unknown Exits Taken 10 | 1 1 1 . . 1 . . . . . . . 1 1 1 . 1 . 1 . 1 . Scrap Searched . | . . . . . . . . . . . . . . . . . . . . . . . Spaces Dug 9 | . . . . . . . . . . . . . . . . 1 . . 6 2 . . Terrain Destroyed 467 | . . . . 2 . . 66 . 62 31 64 40 4 8 5 28 7 16 61 18 35 20 Melee 2 | . . . . . . . . . . . . . . . . . . . 2 . . . Projectile 181 | . . . . . . . 2 . . 5 10 8 4 8 5 28 7 16 17 18 33 20 AOE 282 | . . . . 2 . . 64 . 62 26 54 32 . . . . . . 42 . . . Terrain Rammed . | . . . . . . . . . . . . . . . . . . . . . . . Walls Destroyed . | . . . . . . . . . . . . . . . . . . . . . . . Machines Disabled . | . . . . . . . . . . . . . . . . . . . . . . . Actions | -11 -10 -9 -9 -9 -8 -7 -7 -7 -7 -6 -6 -5 -5 -5 -5 -4 -4 -3 -3 -2 -2 -2 --------- Run | Jun Mat Mat Sto Gar Mat Fac Gar Fac Gar Fac Gar Fac Ext Cet Arc Fac Arm Res Tes Res Qua Sec Total 16248 | 9 295 429 1376 1212 232 34 832 20 424 436 1186 563 1827 371 80 377 502 1229 1427 1416 1136 835 Wait 1558 | . 1 110 293 62 34 . 3 . 28 23 175 155 137 79 5 4 12 128 197 69 12 31 Move 12101 | 2 259 235 973 1057 156 20 713 19 364 367 865 356 1380 227 60 296 328 854 1009 1011 869 681 Hop 2 | . . . . . . . . . . . 2 . . . . . . . . . . . Pick Up 220 | . 10 12 9 7 1 . 17 . 2 4 8 1 22 10 5 6 16 23 24 24 13 6 Fast Attach 248 | . 2 4 16 2 2 . 8 . . 1 9 6 18 6 1 6 20 27 22 52 26 20 Attach 130 | 2 . 3 1 . 5 3 5 . . 2 4 5 4 . 1 8 17 10 20 14 16 10 Detach 32 | . . 5 . 1 2 . 1 . . . 1 . 2 . . . 4 2 4 6 1 3 Swap 178 | 1 5 5 10 17 7 . 6 1 13 2 18 3 21 10 . 3 5 9 10 18 11 3 Drop 294 | 4 9 4 20 8 2 1 18 . 2 2 12 . 32 23 6 6 14 29 21 45 29 7 Fire 1234 | . 9 51 50 55 23 9 35 . 15 34 76 35 54 16 2 42 80 145 103 176 153 71 Melee 41 | . . . . . . . . . . . . . 29 . . . . . 11 . . 1 Ram 2 | . . . . . . . . . . . . . . . . . . . 1 . 1 . Kick 6 | . . . . . . . . . . . . 2 3 . . . . . . 1 . . Crush 20 | . . . 4 . . 1 . . . 1 . . . . . 6 3 . 5 . . . Escape Stasis 53 | . . . . . . . 8 . . . 16 . 20 . . . . 2 . . 5 2 Rewire 129 | . . . . 3 . . 18 . . . . . 105 . . . 3 . . . . . Trap . | . . . . . . . . . . . . . . . . . . . . . . . Miscellaneous . | . . . . . . . . . . . . . . . . . . . . . . . Route ------- -11/Junkyard -10/Materials (discovered 2 exits: *Mat x2) -9/Materials (discovered 2 exits: [*Min] / *Sto) -9/Storage (discovered 2 exits: *Mat / Gar) -9/Garrison (discovered 3 exits: *Mat x3) -8/Materials -7/Factory -7/Garrison (discovered 3 exits: *Fac x3) -7/Factory -7/Garrison (discovered 4 exits: *Fac x3 / [Fac]) -6/Factory -6/Garrison (discovered 3 exits: *Fac x3) -5/Factory (discovered 4 exits: *Upp x2 / *Ext x2) -5/Extension (discovered 2 exits: *Fac / *Cet) -5/Cetus -5/Archives (discovered 2 exits: *Fac / [*Hub]) -4/Factory (discovered 3 exits: Upp x2 / *Arm) -4/Armory -3/Research (discovered 3 exits: *Res / *Tes x2) -3/Testing -2/Research (discovered 2 exits: *Qua x2) -2/Quarantine -2/Section 7 History --------- Turn | Location | Event 1 | -11/Junkyard | Discovered new exit (range 1) 9 | -11/Junkyard | Entered Materials 163 | -10/Materials | Discovered new exit (range 15) 308 | -10/Materials | Build established: Mutant 341 | -10/Materials | Discovered new exit (range 16) 483 | -10/Materials | Entered another Materials area 483 | -9/Materials | Evolved 2 slots: Propulsion x1, Utility x1 1082 | -9/Materials | Discovered new exit (range 6) 1084 | -9/Materials | Discovered new exit (range 15) 1155 | -9/Materials | Entered Storage 1299 | -9/Storage | Found Prototype Launcher 1299 | -9/Storage | Identified Gui. Missile Launcher 1351 | -9/Storage | Assisted by bots powering up and referring to "LRC-V3" 1451 | -9/Storage | Repaired Med. Armor Plating 1479 | -9/Storage | Repaired Lgt. Treads 1531 | -9/Storage | Repaired Imp. Assault Rifle 1661 | -9/Storage | Build established: Commander-Mutant 2264 | -9/Storage | Discovered new exit (range 9) 3243 | -9/Storage | Identified exit to Garrison 3250 | -9/Storage | Entered Garrison 3250 | -9/Garrison | Accompanied by 10 allies 3281 | -9/Garrison | Installed Relay Interface Framework 3310 | -9/Garrison | Triggered checkpoint 3333 | -9/Garrison | Garrison Relay disabled 3468 | -9/Garrison | Triggered checkpoint 3526 | -9/Garrison | Triggered checkpoint 3592 | -9/Garrison | Triggered checkpoint 3672 | -9/Garrison | Triggered checkpoint 3726 | -9/Garrison | Garrison Relay disabled 3781 | -9/Garrison | Discovered new exit (range 13) 3888 | -9/Garrison | Triggered checkpoint 3954 | -9/Garrison | Triggered checkpoint 3960 | -9/Garrison | Discovered new exit (range 15) 4166 | -9/Garrison | Build established: Mutant 4180 | -9/Garrison | Triggered checkpoint 4191 | -9/Garrison | Garrison Relay disabled 4333 | -9/Garrison | Rescued a captive Derelict 4472 | -9/Garrison | Triggered checkpoint 4583 | -9/Garrison | Garrison Relay disabled 4636 | -9/Garrison | Discovered new exit (range 13) 4890 | -9/Garrison | P-60 Hacker assimilated allied *WL-6HJ 5192 | -9/Garrison | Entered Materials 5192 | -8/Materials | Accompanied by 2 allies 5192 | -8/Materials | Evolved 2 slots: Utility x1, Weapon x1 5539 | -8/Materials | Discovered new exit (range 10) 5628 | -8/Materials | Entered Factory 5628 | -7/Factory | Evolved 2 slots: Utility x2 5661 | -7/Factory | Garrison activated, responded to threat 5707 | -7/Factory | Identified exit to Garrison 5707 | -7/Factory | Entered Garrison 5727 | -7/Garrison | Lost 4 parts (3u1w) 5736 | -7/Garrison | Discovered new exit (range 41) 5736 | -7/Garrison | Discovered new exit (range 70) 5736 | -7/Garrison | Discovered new exit (range 53) 5775 | -7/Garrison | Phase Generator disabled 5810 | -7/Garrison | Triggered checkpoint 6022 | -7/Garrison | Triggered checkpoint 6127 | -7/Garrison | Triggered checkpoint 6137 | -7/Garrison | Triggered checkpoint 6145 | -7/Garrison | Triggered checkpoint 6204 | -7/Garrison | Learned Factory security intel 6296 | -7/Garrison | Expanded RIF knowledge: Structural Interface 6327 | -7/Garrison | Build established: Bothacker-Mutant 6370 | -7/Garrison | Triggered checkpoint 6494 | -7/Garrison | Garrison Relay disabled 6694 | -7/Garrison | Build established: Bothacker-Gunner 6760 | -7/Garrison | Garrison Relay disabled 7148 | -7/Garrison | Triggered checkpoint 7244 | -7/Garrison | Garrison Relay disabled 7319 | -7/Garrison | Spotted B-75 Beast 7352 | -7/Garrison | Allies destroyed B-75 Beast 7431 | -7/Garrison | Build established: Bothacker-Mutant 7488 | -7/Garrison | Entered Factory 7488 | -7/Factory | Accompanied by 7 allies 7536 | -7/Factory | Identified exit to Garrison 7536 | -7/Factory | Entered Garrison 7536 | -7/Garrison | Accompanied by 7 allies 7616 | -7/Garrison | Phase Generator disabled 7667 | -7/Garrison | Discovered new exit (range 71) 7667 | -7/Garrison | Discovered new exit (range 87) 7667 | -7/Garrison | Discovered new exit (range 54) 7667 | -7/Garrison | Discovered new exit (range 37) 7752 | -7/Garrison | Triggered checkpoint 7762 | -7/Garrison | Garrison Relay disabled 7832 | -7/Garrison | Expanded RIF knowledge: Hotswap 7972 | -7/Garrison | Triggered checkpoint 7999 | -7/Garrison | Triggered checkpoint 8006 | -7/Garrison | Triggered checkpoint 8010 | -7/Garrison | Triggered checkpoint 8150 | -7/Garrison | Triggered checkpoint 8198 | -7/Garrison | Triggered checkpoint 8230 | -7/Garrison | Garrison Relay disabled 8277 | -7/Garrison | System corruption reached 10% 8453 | -7/Garrison | Found embedded Infiltrators 8491 | -7/Garrison | Entered Factory 8491 | -6/Factory | Accompanied by 2 allies 8491 | -6/Factory | Evolved 2 slots: Utility x2 9481 | -6/Factory | Identified exit to Garrison 9481 | -6/Factory | Entered Garrison 9481 | -6/Garrison | Accompanied by 1 ally 9506 | -6/Garrison | Triggered checkpoint 9759 | -6/Garrison | Heavy support dispatched to Factory 9765 | -6/Garrison | Spotted B-75 Beast 9778 | -6/Garrison | Triggered checkpoint 9781 | -6/Garrison | Destroyed B-75 Beast 9812 | -6/Garrison | Triggered checkpoint 9830 | -6/Garrison | Triggered checkpoint 10066 | -6/Garrison | Triggered checkpoint 10135 | -6/Garrison | Garrison Relay disabled 10314 | -6/Garrison | Discovered new exit (range 5) 10628 | -6/Garrison | H-XX Assembler disabled 10640 | -6/Garrison | Build established: Scavenger-Mutant 10733 | -6/Garrison | Phase Generator disabled 10873 | -6/Garrison | Spotted B-75 Beast 10887 | -6/Garrison | Destroyed B-75 Beast 11094 | -6/Garrison | Triggered checkpoint 11103 | -6/Garrison | Garrison Relay disabled 11233 | -6/Garrison | Discovered new exit (range 8) 11352 | -6/Garrison | Triggered checkpoint 11417 | -6/Garrison | Build established: Bothacker-Gunner 11418 | -6/Garrison | Discovered new exit (range 19) 11418 | -6/Garrison | Discovered new exit (range 55) 11418 | -6/Garrison | Discovered new exit (range 38) 11490 | -6/Garrison | Triggered checkpoint 11547 | -6/Garrison | Garrison Relay disabled 11590 | -6/Garrison | Expanded RIF knowledge: Command Fork 11783 | -6/Garrison | Found Relay Coupler [Proto] 11786 | -6/Garrison | Found Relay Coupler [Proto] 11790 | -6/Garrison | Found Relay Coupler [Proto] 11796 | -6/Garrison | Found Relay Coupler [Proto] 12082 | -6/Garrison | Build established: Bothacker-Tank 12214 | -6/Garrison | Entered Factory 12214 | -5/Factory | Accompanied by 2 allies 12214 | -5/Factory | Evolved 2 slots: Propulsion x1, Utility x1 12514 | -5/Factory | First assault squad dispatched 12541 | -5/Factory | Build established: Bothacker-Mutant 12624 | -5/Factory | Lost 10 parts (1p2n5u2w) 12649 | -5/Factory | Destroyed 12 combat bots 12857 | -5/Factory | Build established: Bothacker-Gunner 12958 | -5/Factory | Discovered new exit (range 10) 13104 | -5/Factory | Identified exit to Upper Caves 13104 | -5/Factory | Identified exit to Extension 13296 | -5/Factory | Entered Extension 13522 | -5/Extension | Lost 5 parts (1p1n1u2w) 14150 | -5/Extension | Lost 5 parts (1p3u1w) 14208 | -5/Extension | Rescued a captive Derelict 14423 | -5/Extension | Rescued A7 14631 | -5/Extension | System corruption reached 10% 15139 | -5/Extension | Build established: Scavenger-Tank 15370 | -5/Extension | Spotted B-75 Beast 15409 | -5/Extension | Allies destroyed B-75 Beast 16341 | -5/Extension | Rescued a captive Derelict 16347 | -5/Extension | Rescued a captive Derelict 16626 | -5/Extension | Build established: Scavenger-Mutant 16646 | -5/Extension | Disrupted transfer network 16746 | -5/Extension | Discovered new exit (range 10) 16749 | -5/Extension | Discovered new exit (range 6) 17012 | -5/Extension | Build established: Scavenger-Tank 17140 | -5/Extension | Entered Cetus 17140 | -5/Cetus | Accompanied by 5 allies (A7) 17145 | -5/Cetus | Acquired a Cetus Manufacturing Module code from A7 17165 | -5/Cetus | Spotted Cetus Guard 17165 | -5/Cetus | Spotted Cetus Guard 17168 | -5/Cetus | Spotted Cetus Guard 17173 | -5/Cetus | Allies destroyed Cetus Guard 17173 | -5/Cetus | Spotted Cetus Guard 17174 | -5/Cetus | Destroyed Cetus Guard 17177 | -5/Cetus | Allies destroyed Cetus Guard 17177 | -5/Cetus | Destroyed Cetus Guard 17180 | -5/Cetus | Extracted ID and sensor layout for unrecognized location from A7's data core 17438 | -5/Cetus | Started Cetus Manufacturing Module 17463 | -5/Cetus | Manufactured an Enhanced Grunt 17488 | -5/Cetus | Manufactured an Enhanced Grunt 17513 | -5/Cetus | Manufactured an Enhanced Grunt 17538 | -5/Cetus | Manufactured an Enhanced Grunt 17563 | -5/Cetus | Manufactured an Enhanced Grunt 17658 | -5/Cetus | Discovered new exit (range 16) 17685 | -5/Cetus | Entered Archives 17685 | -5/Archives | Accompanied by 5 allies 17745 | -5/Archives | Discovered new exit (range 16) 17775 | -5/Archives | Discovered new exit (range 15) 17803 | -5/Archives | Entered Factory 17803 | -4/Factory | Accompanied by 5 allies 17803 | -4/Factory | Evolved 2 slots: Utility x2 17913 | -4/Factory | Spotted B-86 Titan 17926 | -4/Factory | Allies destroyed B-86 Titan 17987 | -4/Factory | Identified exit to Upper Caves 17987 | -4/Factory | Identified exit to Armory 18033 | -4/Factory | Garrison activated, responded to threat 18303 | -4/Factory | First assault squad dispatched 18321 | -4/Factory | Crushed by falling debris 18396 | -4/Factory | Lost 3 parts (1u2w) 18458 | -4/Factory | Entered Armory 18486 | -4/Armory | Lost 11 parts (1p2n7u1w) 18557 | -4/Armory | Lost 3 parts (1n2w) 18958 | -4/Armory | First assault squad dispatched 19105 | -4/Armory | Lost 10 parts (1p1n5u3w) 19110 | -4/Armory | P-70 Sage assimilated allied Artificer 7a 19123 | -4/Armory | System corruption reached 10% 19303 | -4/Armory | Discovered new exit (range 5) 19311 | -4/Armory | Entered Research 19311 | -3/Research | Evolved 2 slots: Utility x2 19336 | -3/Research | Lost 5 parts (1p1n3w) 19426 | -3/Research | Build established: Scavenger-Mutant 19606 | -3/Research | P-80 Master assimilated allied Smith 8a 19671 | -3/Research | Destroyed 8 combat bots 19864 | -3/Research | Lost 3 parts (1n2u) 20061 | -3/Research | First assault squad dispatched 20231 | -3/Research | System corruption reached 10% 20232 | -3/Research | Lost 5 parts (1n2u2w) 20816 | -3/Research | Build established: Scavenger-Gunner 21077 | -3/Research | Discovered new exit (range 14) 21130 | -3/Research | Cargo convoy interrupted 21222 | -3/Research | Identified exit to Testing 21234 | -3/Research | Found Unknown Launcher 21257 | -3/Research | Identified Fusion Bomb Launcher 21349 | -3/Research | Build established: Scavenger-Tank 21408 | -3/Research | Entered Testing 21505 | -3/Testing | Found Prototype Energy Cannon 21505 | -3/Testing | Identified Cld. Nova Cannon 21602 | -3/Testing | Crushed by falling debris 21949 | -3/Testing | System corruption reached 30% 22132 | -3/Testing | Discovered new exit (range 8) 22207 | -3/Testing | Scanned by Researcher 22271 | -3/Testing | Lost 7 parts (1p2n1u3w) 22295 | -3/Testing | Core integrity fell below 50% 22506 | -3/Testing | Build established: Hacker-Mutant 22917 | -3/Testing | Spotted Striker 22917 | -3/Testing | Spotted Striker 22939 | -3/Testing | Found Prototype Device 22939 | -3/Testing | Identified Adv. Kinecellerator 22946 | -3/Testing | Found Prototype Device 22946 | -3/Testing | Identified Exp. Shield Generator 22959 | -3/Testing | Spotted Alpha 7 22962 | -3/Testing | Destroyed Striker 22985 | -3/Testing | Destroyed Alpha 7 23058 | -3/Testing | Stole the SGEMP Prototype 23216 | -3/Testing | Lost 8 parts (1p2n2u3w) 23229 | -3/Testing | Build established: Hacker-Gunner 23530 | -3/Testing | Entered Research 23530 | -2/Research | Evolved 2 slots: Power x1, Utility x1 23979 | -2/Research | Destroyed 7 combat bots 24060 | -2/Research | System corruption reached 10% 24077 | -2/Research | Lost 5 parts (1n1u3w) 24228 | -2/Research | System corruption reached 30% 25023 | -2/Research | Build established: Wizard-Tank 25063 | -2/Research | Found Hvy. Reflective Plating 25081 | -2/Research | Lost 3 parts (3u) 25324 | -2/Research | Spotted B-90 Cyclops 25401 | -2/Research | Build established: Scavenger-Tank 25409 | -2/Research | Destroyed B-90 Cyclops 25437 | -2/Research | Identified exit to Quarantine 25869 | -2/Research | Build established: Hacker-Tank 25899 | -2/Research | Spotted B-90 Cyclops 25909 | -2/Research | Destroyed B-90 Cyclops 25976 | -2/Research | Entered Quarantine 26007 | -2/Quarantine | Found Alien Energy Cannon 26022 | -2/Quarantine | Identified Core Cannon 26323 | -2/Quarantine | Found Prototype Processor 26323 | -2/Quarantine | Identified Exp. Armor Integrity Analyzer 26535 | -2/Quarantine | Lost 3 parts (3u) 26863 | -2/Quarantine | Build established: Scavenger-Tank 27072 | -2/Quarantine | Found Alien Artifact 27072 | -2/Quarantine | Identified Subatomic Replicator 27174 | -2/Quarantine | Found Prototype Device 27174 | -2/Quarantine | Identified Exp. EM Disruption Field 27355 | -2/Quarantine | Found Alien Artifact 27355 | -2/Quarantine | Identified Core Reset Matrix 27355 | -2/Quarantine | Used Core Reset Matrix 27359 | -2/Quarantine | Detected hypermatrix surge 27359 | -2/Quarantine | Sensed 10 artifacts in vicinity 27535 | -2/Quarantine | Lost 5 parts (2u3w) 27565 | -2/Quarantine | Spotted Fortress 27599 | -2/Quarantine | Core integrity fell below 50% 27649 | -2/Quarantine | Destroyed Fortress 27673 | -2/Quarantine | Lost 8 parts (2p2n4u) 27673 | -2/Quarantine | Found Prototype Device 27673 | -2/Quarantine | Identified Thermal Barrier 27679 | -2/Quarantine | Found Prototype Device 27679 | -2/Quarantine | Identified Exp. Force Field 27758 | -2/Quarantine | Discovered new exit (range 6) 27766 | -2/Quarantine | Entered Section 7 27767 | -2/Section 7 | Sensed 16 artifacts in vicinity 27891 | -2/Section 7 | Build established: Hacker-Gunner 28050 | -2/Section 7 | Found Prototype Hackware 28050 | -2/Section 7 | Identified Exp. Hacking Suite 28086 | -2/Section 7 | Lost 3 parts (1u2w) 28244 | -2/Section 7 | Lost 3 parts (1p2u) 28263 | -2/Section 7 | Spotted S7 Guard 28284 | -2/Section 7 | Found Navigation Efficiency Matrix 28284 | -2/Section 7 | Installed Navigation Efficiency Matrix, process failed with unexpected side effects 28420 | -2/Section 7 | Found Integrity Redistributor 28420 | -2/Section 7 | Used Integrity Redistributor, redistributed integrity to core (+160) 28895 | -2/Section 7 | Found Integrated Mediator 28895 | -2/Section 7 | Installed Integrated Mediator, increased core attachment efficiency. 28931 | -2/Section 7 | Spotted Alpha 7 28933 | -2/Section 7 | Spotted Alpha 7 28949 | -2/Section 7 | Core integrity fell below 20% 28959 | -2/Section 7 | Destroyed by H-81 Overseer with Heavy Linear Accelerator Last Messages --------------- 28951_ Slug penetrates Wall. 28951_ Penetrated by Slug. 28951_ Slug penetrates Wall. 28951_ Slug penetrates Q090-r. 28952_ Exp. Armor Integrity Analyzer destroyed. 28954_ Myomer Leg destroyed. 28954_ Slug penetrates Q090-r. 28954_ Penetrated by Slug. 28954_ KE Penetrator destroyed. 28954_ Quantum Rifle destroyed. 28954_ Q090-r follow-up attacks with Prototype Slashing Weapon. 28957_ Penetrated by Slug. 28957_ Slug penetrates Wall. 28957_ Fusion Bomb Launcher destroyed. 28957_ Penetrated by Slug. 28957_ Adv. Weapon Cycler destroyed. 28957_ Penetrated by Slug. 28957_ Slug penetrates Wall. 28958_ Q090-r knocked back. 28959_ Mic. Antimatter Reactor destroyed. Map ----- +----------------------------------------------------+ | ?????????????????????????????????????????????????? | | ?????????????????????????????????????????????????? | | ?????????????????????????????????????????????????? | | ?????????????????????????????????????????????????? | | ?????????????????????????????????????????????????? | | ?????????????????????????????????????????????????? | | ?????????????????????????????????????????????????? | | ?????????????????????????????????????????????????? | | ?????????????????????????????????????????????????? | | ?????????????????????????????????????????????????? | | ?????????????????????????????????????????????????? | | ?????????????????????????????????????????????????? | | ?????????????????????????????????????????????????? | | ?????????????????????????"???????????????????????? | | ?????????????????????????"???????????????????????? | | ????????????????????????? ???????????????????????? | | ?????????????????????####;###????????????????????? | | ?????????????????????# ?????????????????????? | | ?????????????????????# ?????????????????????? | | ????????????########## ??????????????????????? | | ????????????# # ==!??????????????????????? | | ????????????# """ "" # *%#??????????????????????? | | ????????????# """ "" # 7 !#??????????????????????? | | ????????????# """ "" # *7Q#??????????????????????? | | ????????????# S + = #??????????????????????? | | ????????????# """ "" # @#??????????????????????? | | ????????????# """ "" # #??????????????????????? | | ????????????# """ "" # #??????????????????????? | | ????????????# # #??????????????????????? | | ????????????########## H #??????????????????????? | | ????????????# % # x #??????????????????????? | | ????????????# + #??????????????????????? | | ????????????# # #??????????????????????? | | ????????????# "" # #??????????????????????? | | ????????????# "" # #??????????????????????? | | ######??????# "%" # #??????????????????????? | | ####???# "" = # #??????????????????????? | | " ## ???# ""=% # #??????????????????????? | | """ ## ???# # #??????????????????????? | | """" ## ???####/##### #??????????????????????? | | """ ## ??????# #???# #??????????????????????? | | ## ??????# #???# #??????????????????????? | | ##+#### ??????# #???# #??????????????????????? | | ?# #?????????# ???# #??????????????????????? | | ?# #?????????# "## #??????????????????????? | | ?# ?? %* #??????????????????????? | | ?# #?????????# = #"# #??????????????????????? | | ?# #?????????# ?????# #??????????????????????? | | ## #????????########## #??????????????????????? | | #!#????????# # #??????????????????????? | +----------------------------------------------------+ Best States ------------- Heat Dissipation 136 Coolant Potential 200 Energy Generation 49 Energy Capacity 1630 Matter Stores 300 Matter Capacity 300 Sight Range 16 Terrain Scan Density 10 Cloak Strength 4 EM Shielding 2 Armor Coverage 1650 Resistance: KI 45 Resistance: TH 70 Resistance: EX 20 Resistance: EM 95 Resistance: I 20 Resistance: S 20 Resistance: P 20 Core Shielding 30 Propulsion Shielding 66 Weapon Shielding 66 Weapon Cycling 25 Phase Shifting 10 Evasion (%) 55 Targeting Accuracy 6 Target Analysis 12 Core Analysis 6 Armor Integrity Analysis 50 Recoil Reduction 10 Particle Charging 25 Kinecelleration 50 Salvage Targeting 2 Offensive Hacking 60 Defensive Hacking 14 Relay Coupler Types 3 Relay Coupler Value 112 Item Schematics ----------------- None Robot Schematics ------------------ None Fabricated ------------ Nothing Alien Tech Used ----------------- Core Cannon Subatomic Replicator Core Reset Matrix Navigation Efficiency Matrix Integrity Redistributor Integrated Mediator Achievements -------------- None Challenges ------------ None Game ------ Seed FlakLauncherWheel Manual? 0 Play Time 04:50:29 Cumulative 114.8 hours Start 2023.05.11 @ 14:46:49 End 2023.05.11 @ 21:20:21 Sessions 1 Manual Loads 0 Difficulty Adventurer Special Mode None Game No. 98 Rogue 50 Adventurer 22 Explorer 26 Win Type - Total 0 Types 0/0/0/0/0/0/0/0/0 Lore% 37 Gallery% 56 Achievement% 66 Wizard Run 0 Options --------- ASCII 0 Keyboard 0 Movement Mouse Keybinds 0 Fullscreen 0 Font 16/Smallcaps Map View 76x50 Tactical HUD 1 Map Filters NONE Filters BRIGHTNESS(125)|SATURATION(75)|LOW_CONTRAST(0,16,30)|SHIFT_HUE(130) Steam 1 RUN: 75049eab-bbed-46b3-b0fc-4f8f442499bf